fUSD/lending_fUSD_20250911
["ID","MTS","AMOUNT","RATE_DAILY","PERIOD"]
[384832271,1757579447067,-512.79626061,0.00029869,7]
[384832272,1757579447077,-400.0,0.00029869,7]
[384832273,1757579447086,-400.0,0.00029869,7]
[384832274,1757579447097,-405.32,0.00029869,7]
[384832275,1757579447106,-402.30344956,0.00029869,7]
[384832276,1757579447115,-408.06891919,0.00029869,7]
[384832277,1757579447124,-400.0,0.00029869,7]
[384832278,1757579447134,-478.84,0.00029869,7]
[384832279,1757579447143,-491.57,0.00029869,7]
[384832280,1757579447153,-400.0,0.00029869,7]
[384832281,1757579447163,-1013.89232009,0.00029869,7]
[384832282,1757579447172,-400.0,0.00029869,7]
[384832283,1757579447182,-401.14710272,0.00029869,7]
[384832284,1757579447192,-401.9501842,0.00029869,7]
[384832285,1757579447202,-428.17403055,0.00029869,7]
[384832286,1757579447211,-404.46010327,0.00029869,7]
[384832287,1757579447221,-400.0,0.00029869,7]
[384832288,1757579447231,-400.0,0.00029869,7]
[384832289,1757579447241,-490.38,0.00029869,7]
[384832290,1757579447251,-403.41140014,0.00029869,7]
[384832291,1757579447261,-522.42,0.00029869,7]
[384832292,1757579447271,-427.9,0.00029869,7]
[384832293,1757579447281,-483.26,0.00029869,7]
[384832294,1757579447298,-420.62604411,0.00029869,7]
[384832295,1757579447587,-406.29841219,0.00029869,7]
[384832296,1757579447609,-374.8014909,0.00029869,7]
[384832297,1757579447618,-400.0,0.00029869,7]
[384832298,1757579447629,-463.48,0.00029869,7]
[384832299,1757579447640,-400.0,0.00029869,7]
[384832300,1757579447649,-400.0,0.00029869,7]
[384832301,1757579447659,-400.0,0.00029869,7]
[384832302,1757579447669,-511.34,0.00029869,7]
[384832303,1757579447678,-400.0,0.00029869,7]
[384832304,1757579447688,-409.57236124,0.00029869,7]
[384832305,1757579447697,-404.59093407,0.00029869,7]
[384832306,1757579447707,-416.46682201,0.00029869,7]
[384832307,1757579447717,-405.25989888,0.00029869,7]
[384832308,1757579447726,-504.1644386,0.00029869,2]
[384832309,1757579447736,-407.70501701,0.00029869,7]
[384832310,1757579447745,-405.21888108,0.00029869,7]
[384832311,1757579447754,-412.95995872,0.00029869,7]
[384832312,1757579447764,-400.0,0.00029869,7]
[384832313,1757579447773,-410.0849175,0.00029869,7]
[384832314,1757579447782,-400.0,0.00029869,7]
[384832315,1757579447791,-383.59370185,0.00029869,7]
[384832316,1757579447800,-402.83966134,0.00029869,7]
[384832317,1757579447809,-408.04337183,0.00029869,7]
[384832318,1757579447819,-405.86213698,0.00029869,7]
[384832319,1757579447828,-409.79575143,0.00029869,7]
[384832320,1757579447837,-400.0,0.00029869,7]
[384832321,1757579447847,-400.0,0.00029869,7]
[384832322,1757579447856,-422.15751559,0.00029869,7]
[384832323,1757579447865,-412.33701092,0.00029869,7]
[384832324,1757579447874,-400.0,0.00029869,7]
[384832325,1757579447883,-418.1995397,0.00029869,7]
[384832326,1757579447893,-404.85737321,0.00029869,7]
[384832327,1757579447902,-408.24502685,0.00029869,7]
[384832328,1757579447913,-400.0,0.00029869,7]
[384832329,1757579447923,-405.93194867,0.00029869,7]
[384832330,1757579447931,-417.77218763,0.00029869,7]
[384832331,1757579447940,-400.0,0.00029869,7]
[384832332,1757579447950,-400.0,0.00029869,7]
[384832333,1757579447959,-400.0,0.00029869,7]
[384832334,1757579447969,-400.0,0.00029869,7]
[384832335,1757579447979,-416.89,0.00029869,7]
[384832336,1757579447989,-500.0,0.00029869,7]
[384832337,1757579447998,-233.84858834,0.00029869,7]
[384832338,1757579448008,-400.0,0.00029869,7]
[384832339,1757579448017,-400.0,0.00029869,7]
[384832340,1757579448027,-400.0,0.00029869,7]
[384832341,1757579448036,-402.78898422,0.00029869,7]
[384832342,1757579448046,-400.0,0.00029869,7]
[384832343,1757579448055,-400.0,0.00029869,7]
[384832344,1757579448065,-402.52768047,0.00029869,7]
[384832345,1757579448074,-400.0,0.00029869,7]
[384832346,1757579448084,-503.06,0.00029869,7]
[384832347,1757579448094,-400.0,0.00029869,7]
[384832348,1757579448104,-400.0,0.00029869,7]
[384832349,1757579448114,-400.0,0.00029869,7]
[384832350,1757579448123,-400.0,0.00029869,7]
[384832351,1757579448133,-520.08706798,0.00029869,7]
[384832352,1757579448142,-400.0,0.00029869,7]
[384832353,1757579448151,-411.31994105,0.00029869,7]
[384832354,1757579448161,-406.04021491,0.00029869,7]
[384832355,1757579448171,-410.16785416,0.00029869,7]
[384832356,1757579448180,-400.0,0.00029869,7]
[384832357,1757579448190,-414.15886779,0.00029869,7]
[384832358,1757579448200,-400.0,0.00029869,7]
[384832359,1757579448209,-400.0,0.00029869,7]
[384832360,1757579448219,-400.0,0.00029869,7]
[384832361,1757579448228,-400.0,0.00029869,7]
[384832362,1757579448238,-418.94763189,0.00029869,7]
[384832363,1757579448248,-400.0,0.00029869,7]
[384832364,1757579448257,-400.0,0.00029869,7]
[384832365,1757579448267,-400.0,0.00029869,7]
[384832366,1757579448277,-400.0,0.00029869,7]
[384832367,1757579448286,-407.98568237,0.00029869,7]
[384832368,1757579448297,-400.0,0.00029869,7]
[384832369,1757579448306,-405.57948446,0.00029869,7]
[384832370,1757579448316,-400.0,0.00029869,7]
[384832371,1757579448326,-406.07171216,0.00029869,7]
[384832372,1757579448337,-400.0,0.00029869,7]
[384832373,1757579448347,-400.0,0.00029869,7]
[384832374,1757579448357,-404.49419797,0.00029869,7]
[384832375,1757579448366,-400.0,0.00029869,7]
[384832376,1757579448376,-400.0,0.00029869,7]
[384832377,1757579448386,-400.0,0.00029869,7]
[384832378,1757579448396,-400.0,0.00029869,7]
[384832379,1757579448406,-546.6642815,0.00029869,2]
[384832380,1757579448416,-444.48,0.00029869,7]
[384832381,1757579448426,-402.5093433,0.00029869,7]
[384832382,1757579448435,-681.44,0.00029869,7]
[384832383,1757579448445,-400.0,0.00029869,7]
[384832384,1757579448455,-400.0,0.00029869,7]
[384832385,1757579448465,-400.0,0.00029869,7]
[384832386,1757579448475,-402.54,0.00029869,7]
[384832387,1757579448485,-400.0,0.00029869,7]
[384832388,1757579448495,-400.0,0.00029869,7]
[384832389,1757579448505,-400.0,0.00029869,7]
[384832390,1757579448515,-765.39,0.00029869,7]
[384832391,1757579448524,-400.0,0.00029869,7]
[384832392,1757579448534,-498.6,0.00029869,7]
[384832393,1757579448543,-400.0,0.00029869,7]
[384832394,1757579448553,-400.0,0.00029869,7]
[384832395,1757579448563,-400.0,0.00029869,7]
[384832396,1757579448574,-587.42,0.00029869,7]
[384832397,1757579448584,-553.95,0.00029869,7]
[384832398,1757579448595,-509.84565065,0.00029869,7]
[384832399,1757579448605,-400.0,0.00029869,7]
[384832400,1757579448614,-400.0,0.00029869,7]
[384832401,1757579448624,-405.27727043,0.00029869,7]
[384832402,1757579448639,-404.70072918,0.00029869,7]
[384832403,1757579448649,-400.0,0.00029869,7]
[384832404,1757579448659,-400.0,0.00029869,7]
[384832405,1757579448669,-400.0,0.00029869,7]
[384832406,1757579448680,-400.0,0.00029869,7]
[384832407,1757579448690,-553.44,0.00029869,7]
[384832408,1757579448700,-400.0,0.00029869,7]
[384832409,1757579448710,-400.0,0.00029869,7]
[384832410,1757579448720,-450.77,0.00029869,7]
[384832411,1757579448733,-402.90444249,0.00029869,7]
[384832412,1757579448744,-400.0,0.00029869,7]
[384832413,1757579448754,-400.0,0.00029869,7]
[384832414,1757579448764,-400.0,0.00029869,7]
[384832415,1757579448775,-400.0,0.00029869,7]
[384832416,1757579448784,-666.27,0.00029869,7]
[384832417,1757579448794,-402.48596396,0.00029869,7]
[384832418,1757579448804,-400.0,0.00029869,7]
[384832419,1757579448814,-406.01559187,0.00029869,7]
[384832420,1757579448823,-400.0,0.00029869,7]
[384832421,1757579448833,-400.0,0.00029869,7]
[384832422,1757579448844,-400.0,0.00029869,7]
[384832423,1757579448854,-505.09,0.00029869,7]
[384832424,1757579448864,-757.9,0.00029869,7]
[384832425,1757579448875,-400.0,0.00029869,7]
[384832426,1757579448885,-400.0,0.00029869,7]
[384832427,1757579448894,-400.0,0.00029869,7]
[384832428,1757579448904,-826.32,0.00029869,7]
[384832429,1757579448914,-400.0,0.00029869,7]
[384832430,1757579448923,-401.76958771,0.00029869,7]
[384832431,1757579448933,-400.0,0.00029869,7]
[384832432,1757579448942,-400.0,0.00029869,7]
[384832433,1757579448952,-1156.43,0.00029869,7]
[384832434,1757579448962,-400.0,0.00029869,7]
[384832435,1757579448971,-400.0,0.00029869,7]
[384832436,1757579448982,-580.0,0.00029869,7]
[384832437,1757579448992,-400.0,0.00029869,7]
[384832438,1757579449001,-468.18,0.00029869,7]
[384832439,1757579449011,-538.72,0.00029869,7]
[384832440,1757579449021,-400.0,0.00029869,7]
[384832441,1757579449030,-25980.9349254,0.00029869,2]
[384832442,1757579449040,-406.06519376,0.00029869,7]
[384832443,1757579449048,-400.0,0.00029869,7]
[384832444,1757579449058,-400.0,0.00029869,7]
[384832445,1757579449068,-400.0,0.00029869,7]
[384832446,1757579449077,-400.0,0.00029869,7]
[384832447,1757579449086,-400.0,0.00029869,7]
[384832448,1757579449095,-400.0,0.00029869,7]
[384832449,1757579449104,-418.27,0.00029869,7]
[384832450,1757579449114,-507.01,0.00029869,7]
[384832451,1757579449123,-435.35,0.00029869,7]
[384832452,1757579449133,-400.0,0.00029869,7]
[384832453,1757579449143,-435.19,0.00029869,7]
[384832454,1757579449153,-502.60803419,0.00029869,7]
[384832455,1757579449163,-400.0,0.00029869,7]
[384832456,1757579449172,-400.0,0.00029869,7]
[384832457,1757579449181,-526.41,0.00029869,7]
[384832458,1757579449192,-662.65,0.00029869,7]
[384832459,1757579449202,-400.0,0.00029869,7]
[384832460,1757579449211,-400.0,0.00029869,7]
[384832461,1757579449221,-400.0,0.00029869,7]
[384832462,1757579449231,-418.69328487,0.00029869,7]
[384832463,1757579449241,-403.02181561,0.00029869,7]
[384832464,1757579449250,-400.0,0.00029869,7]
[384832465,1757579449261,-372.65296095,0.00029869,7]
[384832466,1757579449270,-400.0,0.00029869,7]
[384832467,1757579449281,-400.0,0.00029869,7]
[384832468,1757579449291,-653.86,0.00029869,7]
[384832469,1757579449302,-400.0,0.00029869,7]
[384832470,1757579449313,-520.82,0.00029869,7]
[384832471,1757579449323,-400.0,0.00029869,2]
[384832472,1757579449334,-402.93677831,0.00029869,7]
[384832473,1757579449345,-400.0,0.00029869,7]
[384832474,1757579449355,-582.98,0.00029869,7]
[384832475,1757579449365,-403.15735705,0.00029869,7]
[384832476,1757579449375,-576.41,0.00029869,7]
[384832477,1757579449384,-400.0,0.00029869,7]
[384832478,1757579449395,-400.0,0.00029869,7]
[384832479,1757579449405,-400.0,0.00029869,7]
[384832480,1757579449414,-400.0,0.00029869,7]
[384832481,1757579449423,-404.24106798,0.00029869,7]
[384832482,1757579449433,-400.0,0.00029869,7]
[384832483,1757579449443,-567.31,0.00029869,7]
[384832484,1757579449452,-400.0,0.00029869,7]
[384832485,1757579449462,-400.0,0.00029869,7]
[384832486,1757579449472,-400.0,0.00029869,7]
[384832487,1757579449482,-400.0,0.00029869,7]
[384832488,1757579449492,-400.0,0.00029869,7]
[384832489,1757579449502,-400.0,0.00029869,7]
[384832490,1757579449511,-402.30248224,0.00029869,7]
[384832491,1757579449521,-400.0,0.00029869,7]
[384832492,1757579449531,-490.14,0.00029869,7]
[384832493,1757579449540,-523.18984763,0.00029869,7]
[384832494,1757579449549,-400.0,0.00029869,7]
[384832495,1757579449559,-400.0,0.00029869,7]
[384832496,1757579449568,-575.51,0.00029869,7]
[384832497,1757579449577,-400.0,0.00029869,7]
[384832498,1757579449587,-665.75,0.00029869,7]
[384832499,1757579449596,-400.0,0.00029869,7]
[384832500,1757579449606,-400.0,0.00029869,7]
[384832501,1757579449616,-643.94,0.00029869,7]
[384832502,1757579449626,-1007.85,0.00029869,7]
[384832503,1757579449638,-400.0,0.00029869,7]
[384832504,1757579449648,-400.0,0.00029869,7]
[384832505,1757579449657,-405.24463167,0.00029869,7]
[384832506,1757579449666,-406.31419409,0.00029869,7]
[384832507,1757579449677,-400.0,0.00029869,7]
[384832508,1757579449686,-400.0,0.00029869,7]
[384832509,1757579449696,-400.0,0.00029869,7]
[384832510,1757579449706,-407.68855399,0.00029869,7]
[384832511,1757579449715,-729.72,0.00029869,7]
[384832512,1757579449724,-921.02,0.00029869,7]
[384832513,1757579449734,-400.0,0.00029869,7]
[384832514,1757579449743,-400.0,0.00029869,7]
[384832515,1757579449753,-403.54004737,0.00029869,7]
[384832516,1757579449762,-402.30365415,0.00029869,7]
[384832517,1757579449772,-403.51731874,0.00029869,7]
[384832518,1757579449781,-400.0,0.00029869,7]
[384832519,1757579449791,-425.67843629,0.00029869,7]
[384832520,1757579449800,-403.48922395,0.00029869,7]
[384832521,1757579449811,-400.0,0.00029869,7]
[384832522,1757579449821,-689.86,0.00029869,7]
[384832523,1757579449832,-402.87422863,0.00029869,7]
[384832524,1757579449841,-400.0,0.00029869,7]
[384832525,1757579449850,-400.0,0.00029869,7]
[384832526,1757579449860,-400.0,0.00029869,7]
[384832527,1757579449869,-468.93,0.00029869,7]
[384832528,1757579449878,-400.0,0.00029869,7]
[384832529,1757579449887,-404.29094053,0.00029869,7]
[384832530,1757579449897,-403.21487735,0.00029869,7]
[384832531,1757579449906,-400.0,0.00029869,7]
[384832532,1757579449916,-403.58853597,0.00029869,7]
[384832533,1757579449927,-406.77585388,0.00029869,7]
[384832534,1757579450010,-400.0,0.00029869,7]
[384832535,1757579450021,-403.39986684,0.00029869,7]
[384832536,1757579450031,-400.0,0.00029869,7]
[384832537,1757579450041,-400.0,0.00029869,7]
[384832538,1757579450051,-404.3547881,0.00029869,7]
[384832539,1757579450061,-400.0,0.00029869,7]
[384832540,1757579450072,-487.66,0.00029869,7]
[384832541,1757579450081,-557.17,0.00029869,7]
[384832542,1757579450090,-402.15194477,0.00029869,7]
[384832543,1757579450099,-400.0,0.00029869,7]
[384832544,1757579450109,-504.1952896,0.00029869,7]
[384832545,1757579450118,-400.0,0.00029869,7]
[384832546,1757579450128,-400.0,0.00029869,7]
[384832547,1757579450140,-400.0,0.00029869,7]
[384832548,1757579450150,-400.0,0.00029869,7]
[384832549,1757579450159,-400.0,0.00029869,7]
[384832550,1757579450169,-649.9,0.00029869,7]
[384832551,1757579450178,-400.0,0.00029869,7]
[384832552,1757579450187,-400.0,0.00029869,7]
[384832553,1757579450196,-400.0,0.00029869,7]
[384832554,1757579450206,-462.88,0.00029869,7]
[384832555,1757579450215,-400.0,0.00029869,7]
[384832556,1757579450224,-400.0,0.00029869,7]
[384832557,1757579450232,-400.0,0.00029869,7]
[384832558,1757579450242,-400.0,0.00029869,7]
[384832559,1757579450251,-400.0,0.00029869,7]
[384832560,1757579450260,-400.0,0.00029869,7]
[384832561,1757579450269,-457.52,0.00029869,7]
[384832562,1757579450278,-460.92,0.00029869,7]
[384832563,1757579450287,-406.44628565,0.00029869,7]
[384832564,1757579450296,-1000.0,0.00029869,7]
[384832565,1757579450307,-400.0,0.00029869,7]
[384832566,1757579450316,-400.0,0.00029869,7]
[384832567,1757579450325,-238.95604386,0.00029869,7]
[384832568,1757579450335,-403.60142429,0.00029869,7]
[384832569,1757579450344,-400.0,0.00029869,7]
[384832570,1757579450353,-400.0,0.00029869,7]
[384832571,1757579450363,-537.6,0.00029869,7]
[384832572,1757579450372,-405.11312418,0.00029869,7]
[384832573,1757579450381,-400.0,0.00029869,7]
[384832574,1757579450390,-824.8,0.00029869,7]
[384832575,1757579450399,-402.99147937,0.00029869,7]
[384832576,1757579450408,-429.92,0.00029869,7]
[384832577,1757579450418,-400.0,0.00029869,7]
[384832578,1757579450427,-511.87,0.00029869,7]
[384832579,1757579450438,-400.0,0.00029869,7]
[384832580,1757579450447,-414.94,0.00029869,7]
[384832581,1757579450456,-416.73,0.00029869,7]
[384832582,1757579450465,-400.0,0.00029869,7]
[384832583,1757579450474,-400.0,0.00029869,7]
[384832584,1757579450483,-400.0,0.00029869,7]
[384832585,1757579450492,-400.0,0.00029869,7]
[384832586,1757579450501,-400.0,0.00029869,7]
[384832587,1757579450510,-400.0,0.00029869,7]
[384832588,1757579450519,-528.47,0.00029869,7]
[384832589,1757579450529,-483.09,0.00029869,7]
[384832590,1757579450539,-400.0,0.00029869,7]
[384832591,1757579450548,-479.71,0.00029869,7]
[384832592,1757579450557,-400.0,0.00029869,7]
[384832593,1757579450566,-400.0,0.00029869,7]
[384832594,1757579450575,-400.0,0.00029869,7]
[384832595,1757579450584,-400.0,0.00029869,7]
[384832596,1757579450593,-400.0,0.00029869,7]
[384832597,1757579450603,-619.22,0.00029869,7]
[384832598,1757579450614,-573.3,0.00029869,7]
[384832599,1757579450626,-400.0,0.00029869,7]
[384832600,1757579450642,-400.0,0.00029869,7]
[384832601,1757579450651,-400.0,0.00029869,7]
[384832602,1757579450661,-551.11,0.00029869,7]
[384832603,1757579450670,-568.83,0.00029869,7]
[384832604,1757579450680,-400.0,0.00029869,7]
[384832605,1757579450690,-490.07,0.00029869,7]
[384832606,1757579450699,-400.0,0.00029869,7]
[384832607,1757579450710,-400.0,0.00029869,7]
[384832608,1757579450719,-400.0,0.00029869,7]
[384832609,1757579450729,-400.0,0.00029869,7]
[384832610,1757579450738,-548.04,0.00029869,7]
[384832611,1757579450747,-400.0,0.00029869,7]
[384832612,1757579450756,-400.0,0.00029869,7]
[384832613,1757579450765,-795.7,0.00029869,7]
[384832614,1757579450775,-400.0,0.00029869,7]
[384832615,1757579450784,-400.0,0.00029869,7]
[384832616,1757579450793,-400.0,0.00029869,7]
[384832617,1757579450803,-453.74,0.00029869,7]
[384832618,1757579450812,-400.0,0.00029869,7]
[384832619,1757579450821,-400.0,0.00029869,7]
[384832620,1757579450830,-400.0,0.00029869,7]
[384832621,1757579450839,-400.0,0.00029869,7]
[384832622,1757579450848,-610.86,0.00029869,7]
[384832623,1757579450858,-421.05945463,0.00029869,7]
[384832624,1757579450869,-400.0,0.00029869,7]
[384832625,1757579450880,-717.97,0.00029869,7]
[384832626,1757579450889,-400.0,0.00029869,7]
[384832627,1757579450899,-400.0,0.00029869,7]
[384832628,1757579450908,-771.18,0.00029869,7]
[384832629,1757579450917,-400.0,0.00029869,7]
[384832630,1757579450926,-400.0,0.00029869,7]
[384832631,1757579450935,-1459.69,0.00029869,7]
[384832632,1757579450943,-360.14513508,0.00029869,7]
[384832633,1757579450952,-400.0,0.00029869,7]
[384832634,1757579450961,-152.24705837,0.00029869,7]
[384832635,1757579450970,-400.0,0.00029869,7]
[384832636,1757579450980,-544.66,0.00029869,7]
[384832637,1757579450989,-1234.57,0.00029869,7]
[384832638,1757579450997,-400.0,0.00029869,7]
[384832639,1757579451007,-200.50127505,0.00029869,7]
[384832640,1757579451016,-443.56,0.00029869,7]
[384832641,1757579451026,-664.5,0.00029869,7]
[384832642,1757579451035,-1542.55,0.00029869,7]
[384832643,1757579451043,-400.0,0.00029869,7]
[384832644,1757579451052,-400.0,0.00029869,7]
[384832645,1757579451061,-501.5,0.00029869,7]
[384832646,1757579451070,-574.76,0.00029869,7]
[384832647,1757579451079,-509.57,0.00029869,7]
[384832648,1757579451088,-791.78,0.00029869,7]
[384832649,1757579451098,-400.0,0.00029869,7]
[384832650,1757579451107,-2519.36,0.00029869,7]
[384832651,1757579451116,-400.0,0.00029869,7]
[384832652,1757579451125,-400.0,0.00029869,7]
[384832653,1757579451134,-1224.99,0.00029869,7]
[384832654,1757579451143,-1017.8,0.00029869,7]
[384832655,1757579451152,-543.52,0.00029869,7]
[384832656,1757579451161,-395.86698256,0.00029869,7]
[384832657,1757579451170,-1443.05,0.00029869,7]
[384832658,1757579451180,-400.0,0.00029869,7]
[384832659,1757579451189,-400.0,0.00029869,7]
[384832660,1757579451198,-660.73,0.00029869,7]
[384832661,1757579451207,-400.0,0.00029869,7]
[384832662,1757579451217,-400.0,0.00029869,7]
[384832663,1757579451225,-418.28461856,0.00029869,7]
[384832664,1757579451234,-495.51,0.00029869,7]
[384832665,1757579451243,-400.0,0.00029869,7]
[384832666,1757579451252,-664.45,0.00029869,7]
[384832667,1757579451261,-400.0,0.00029869,7]
[384832668,1757579451270,-400.0,0.00029869,7]
[384832669,1757579451279,-417.72,0.00029869,7]
[384832670,1757579451287,-3953.21,0.00029869,7]
[384832671,1757579451297,-400.0,0.00029869,7]
[384832672,1757579451306,-1288.33,0.00029869,7]
[384832673,1757579451315,-742.02,0.00029869,7]
[384832674,1757579451324,-400.0,0.00029869,7]
[384832675,1757579451333,-594.44,0.00029869,7]
[384832676,1757579451343,-400.0,0.00029869,7]
[384832677,1757579451351,-563.2,0.00029869,7]
[384832678,1757579451361,-400.0,0.00029869,7]
[384832679,1757579451370,-400.0,0.00029869,7]
[384832680,1757579451379,-507.53,0.00029869,7]
[384832681,1757579451388,-430.7,0.00029869,7]
[384832682,1757579451396,-1091.44,0.00029869,7]
[384832683,1757579451405,-400.0,0.00029869,7]
[384832684,1757579451415,-400.0,0.00029869,7]
[384832685,1757579451424,-515.06,0.00029869,7]
[384832686,1757579451432,-400.0,0.00029869,7]
[384832687,1757579451441,-451.59,0.00029869,7]
[384832688,1757579451450,-151.0,0.00029869,7]
[384832689,1757579451460,-3364.84,0.00029869,5]
[384832690,1757579451469,-151.0,0.00029869,7]
[384832691,1757579451479,-400.0,0.00029869,7]
[384832692,1757579451488,-400.0,0.00029869,7]
[384832693,1757579451497,-151.0,0.00029869,7]
[384832694,1757579451506,-1472.52,0.00029869,7]
[384832695,1757579451515,-400.0,0.00029869,7]
[384832696,1757579451524,-400.0,0.00029869,7]
[384832697,1757579451533,-814.952508,0.00029869,7]
[384832698,1757579451542,-400.0,0.00029869,7]
[384832699,1757579451552,-814.952508,0.00029869,7]
[384832700,1757579451561,-400.0,0.00029869,7]
[384832701,1757579451570,-400.0,0.00029869,7]
[384832702,1757579451579,-151.0,0.00029869,7]
[384832703,1757579451588,-151.0,0.00029869,7]
[384832704,1757579451597,-151.0,0.00029869,7]
[384832705,1757579451606,-400.0,0.00029869,7]
[384832706,1757579451615,-400.0,0.00029869,7]
[384832707,1757579451624,-814.952508,0.00029869,7]
[384832708,1757579451637,-400.0,0.00029869,7]
[384832709,1757579451647,-182.690855,0.00029869,7]
[384832710,1757579451655,-151.0,0.00029869,7]
[384832711,1757579451664,-192.06057,0.00029869,7]
[384832712,1757579451674,-151.0,0.00029869,7]
[384832713,1757579451683,-439.99523238,0.00029869,7]
[384832714,1757579451693,-182.690855,0.00029869,7]
[384832715,1757579451702,-192.06057,0.00029869,7]
[384832716,1757579451712,-151.0,0.00029869,7]
[384832717,1757579451721,-814.952508,0.00029869,7]
[384832718,1757579451731,-232.358881,0.00029869,7]
[384832719,1757579451740,-192.06057,0.00029869,7]
[384832720,1757579451750,-182.690855,0.00029869,7]
[384832721,1757579451759,-232.358881,0.00029869,7]
[384832722,1757579451768,-400.0,0.00029869,7]
[384832723,1757579451777,-192.06057,0.00029869,7]
[384832724,1757579451786,-232.358881,0.00029869,7]
[384832725,1757579451795,-407.81195638,0.00029869,7]
[384832726,1757579451804,-182.690855,0.00029869,7]
[384832727,1757579451813,-153.50553,0.00029869,7]
[384832728,1757579451822,-151.0,0.00029869,7]
[384832729,1757579451831,-232.358881,0.00029869,7]
[384832730,1757579451840,-256.91365648,0.00029869,7]
[384832731,1757579451848,-151.0,0.00029869,7]
[384832732,1757579451858,-1010.31,0.00029869,7]
[384832733,1757579451867,-400.0,0.00029869,7]
[384832734,1757579451876,-400.0,0.00029869,7]
[384832735,1757579451885,-628.94,0.00029869,7]
[384832736,1757579451894,-156.717352,0.00029869,7]
[384832737,1757579451903,-400.0,0.00029869,7]
[384832738,1757579451912,-740.283751,0.00029869,7]
[384832739,1757579451921,-400.0,0.00029869,7]
[384832740,1757579451930,-740.283751,0.00029869,7]
[384832741,1757579451939,-400.0,0.00029869,7]
[384832742,1757579451948,-740.283751,0.00029869,7]
[384832743,1757579451958,-740.283751,0.00029869,7]
[384832744,1757579451966,-1718.24,0.00029869,7]
[384832745,1757579451975,-400.0,0.00029869,7]
[384832746,1757579451985,-500.0,0.00029869,2]
[384832747,1757579451994,-166.474701,0.00029869,7]
[384832748,1757579452003,-413.76,0.00029869,7]
[384832749,1757579452011,-697.46,0.00029869,7]
[384832750,1757579452020,-400.0,0.00029869,7]
[384832751,1757579452029,-1811.04,0.00029869,7]
[384832752,1757579452039,-156.25958,0.00029869,7]
[384832753,1757579452048,-400.0,0.00029869,7]
[384832754,1757579452058,-400.0,0.00029869,7]
[384832755,1757579452067,-519.12,0.00029869,7]
[384832756,1757579452075,-1491.247029,0.00029869,7]
[384832757,1757579452085,-1491.247029,0.00029869,7]
[384832758,1757579452095,-151.0,0.00029869,7]
[384832759,1757579452104,-224.249219,0.00029869,7]
[384832760,1757579452113,-1491.247029,0.00029869,7]
[384832761,1757579452122,-151.0,0.00029869,7]
[384832762,1757579452131,-400.0,0.00029869,7]
[384832763,1757579452140,-400.0,0.00029869,7]
[384832764,1757579452150,-1491.247029,0.00029869,7]
[384832765,1757579452159,-205.84169333,0.00029869,7]
[384832766,1757579452168,-3060.24,0.00029869,7]
[384832767,1757579452177,-224.249219,0.00029869,7]
[384832768,1757579452186,-660.58,0.00029869,7]
[384832769,1757579452196,-400.0,0.00029869,7]
[384832770,1757579452207,-151.0,0.00029869,7]